bitfinex/quotes_BTCUSD_20240803
["timestamp","ask_amount","ask_price","bid_price","bid_amount"]
[1722697088889,2.2786163,62093.0,62092.0,0.22960399]
[1722697089110,2.04503996,62093.0,62092.0,0.22960399]
[1722697089317,1.74418953,62093.0,62092.0,0.22960399]
[1722697089542,1.74418953,62093.0,62092.0,0.23117838]
[1722697089770,1.74418953,62093.0,62092.0,0.23748417]
[1722697090079,1.74418953,62093.0,62092.0,0.22960399]
[1722697090080,1.73018953,62093.0,62092.0,0.22960399]
[1722697090380,1.73018953,62093.0,62092.0,0.23748057]
[1722697090581,0.85073029,62093.0,62092.0,0.72063357]
[1722697091164,0.85073029,62093.0,62092.0,0.72220796]
[1722697091382,0.85073029,62093.0,62092.0,0.40010596]
[1722697091771,0.85073029,62093.0,62092.0,0.72220796]
[1722697092901,0.8507114,62093.0,62092.0,0.72220796]
[1722697093303,0.8507114,62093.0,62092.0,0.23905496]
[1722697094262,0.8507114,62093.0,62092.0,0.23748057]
[1722697094495,0.8507114,62093.0,62092.0,0.23905496]
[1722697094930,1.00817064,62093.0,62092.0,0.23748057]
[1722697095651,1.49131564,62093.0,62092.0,0.23748057]
[1722697095853,1.00817064,62093.0,62092.0,0.23748057]
[1722697096096,1.00817064,62093.0,62092.0,0.22960399]
[1722697096310,1.16922896,62093.0,62092.0,0.22960399]
[1722697096512,1.00818096,62093.0,62092.0,0.22960399]
[1722697096717,1.00818096,62093.0,62092.0,0.23747654]
[1722697097308,0.99418096,62093.0,62092.0,0.23747654]
[1722697097750,0.98918096,62093.0,62092.0,0.23747654]
[1722697097866,1.00018096,62093.0,62092.0,0.23905093]
[1722697098070,1.00018096,62093.0,62092.0,0.23747654]
[1722697099899,0.84272172,62093.0,62092.0,0.23747654]
[1722697100107,0.84272172,62093.0,62092.0,0.72220393]
[1722697100312,0.84272172,62093.0,62092.0,1.04273154]
[1722697100845,0.84272172,62093.0,62092.0,1.05273154]
[1722697101194,0.84272172,62093.0,62092.0,1.04273154]
[1722697101828,0.84272172,62093.0,62092.0,1.05273154]
[1722697102327,0.84272172,62093.0,62092.0,1.38483354]
[1722697103094,0.83372172,62093.0,62092.0,1.38483354]
[1722697103299,0.82270134,62093.0,62092.0,1.38483354]
[1722697103502,0.00083,62093.0,62092.0,1.72093554]
[1722697103702,0.00083,62093.0,62092.0,1.72293554]
[1722697104773,0.00083,62093.0,62092.0,1.39883354]
[1722697104986,0.00083,62093.0,62092.0,1.40083354]
[1722697106824,0.00083,62093.0,62092.0,1.73254881]
[1722697109184,0.00083,62093.0,62092.0,1.73054881]
[1722697109598,0.00183,62093.0,62092.0,1.73354881]
[1722697110290,0.00183,62093.0,62092.0,1.73154881]
[1722697110612,0.00283,62093.0,62092.0,1.73554881]
[1722697111679,0.00283,62093.0,62092.0,1.41144681]
[1722697112068,0.63883,62105.0,62104.0,0.8151]
[1722697112385,0.77268054,62105.0,62104.0,0.8151]
[1722697112584,0.77268054,62105.0,62104.0,0.82293673]
[1722697113146,0.77668054,62105.0,62104.0,0.82293673]
[1722697113349,0.77668054,62105.0,62104.0,0.50089673]
[1722697113803,0.77668204,62105.0,62104.0,0.50089673]
[1722697114120,0.70114204,62105.0,62104.0,0.51189673]
[1722697114265,0.70114204,62105.0,62104.0,0.50189673]
[1722697116014,0.70114204,62105.0,62104.0,0.51189673]
[1722697116185,0.14285204,62105.0,62104.0,0.65829673]
[1722697116814,0.14285204,62105.0,62104.0,0.98033673]
[1722697117143,0.14285204,62105.0,62104.0,0.65829673]
[1722697117352,0.14285017,62105.0,62104.0,0.65829673]
[1722697117767,0.14368017,62105.0,62104.0,0.65829673]
[1722697118531,0.14368017,62105.0,62104.0,0.64829673]
[1722697118732,0.14368017,62105.0,62104.0,0.16523673]
[1722697118964,0.14368017,62105.0,62104.0,0.32625673]
[1722697119137,0.14368017,62105.0,62104.0,0.64829673]
[1722697119511,0.14368017,62105.0,62104.0,0.32625673]
[1722697119723,0.14368017,62105.0,62104.0,0.16681112]
[1722697119925,0.14368017,62105.0,62104.0,0.16523673]
[1722697120353,0.14368017,62105.0,62104.0,0.32625673]
[1722697120757,0.14368017,62105.0,62104.0,0.16681112]
[1722697121884,0.14368017,62105.0,62104.0,0.01883673]
[1722697122501,1.10622641,62105.0,62104.0,0.01883673]
[1722697122704,1.50706141,62105.0,62104.0,0.01883673]
[1722697122926,1.50706141,62105.0,62104.0,0.011]
[1722697122927,0.86299141,62105.0,62104.0,0.011]
[1722697123129,0.78419141,62105.0,62104.0,0.011]
[1722697123933,0.98500386,62105.0,62104.0,0.011]
[1722697124149,0.85115369,62105.0,62104.0,0.011]
[1722697124342,0.98502095,62105.0,62104.0,0.011]
[1722697124952,1.30705595,62105.0,62104.0,0.011]
[1722697125181,1.36995595,62105.0,62104.0,0.011]
[1722697125578,1.69199095,62105.0,62104.0,0.011]
[1722697125826,1.36995595,62105.0,62104.0,0.011]
[1722697126154,0.98502095,62105.0,62104.0,0.011]
[1722697126364,0.35764831,62105.0,62104.0,0.011]
[1722697126565,0.14370188,62105.0,62104.0,0.011]
[1722697126777,0.14370188,62105.0,62104.0,0.01835106]
[1722697126994,0.46217812,62105.0,62104.0,0.01835106]
[1722697127199,1.30704622,62105.0,62104.0,0.01835106]
[1722697127403,1.30704622,62105.0,62104.0,0.011]
[1722697127610,1.36994622,62105.0,62104.0,0.011]
[1722697127815,1.36995287,62105.0,62104.0,0.011]
[1722697128453,0.98501787,62105.0,62104.0,0.011]
[1722697128656,0.41375307,62105.0,62104.0,0.011]
[1722697129271,0.73578807,62105.0,62104.0,0.011]
[1722697129448,0.41375307,62105.0,62104.0,0.011]
[1722697129847,0.73578807,62105.0,62104.0,0.011]
[1722697130482,0.41375307,62105.0,62104.0,0.011]
[1722697130688,0.29132989,62105.0,62104.0,0.0775]
[1722697130893,0.13387065,62105.0,62104.0,0.0775]
[1722697131101,0.13387065,62105.0,62104.0,0.16668898]
[1722697131305,0.38,62106.0,62105.0,0.01]
[1722697131508,0.38,62106.0,62105.0,0.09032633]
[1722697131509,0.51385747,62106.0,62105.0,0.09032633]
[1722697131721,0.51385747,62106.0,62105.0,0.09901314]
[1722697132220,0.51385747,62106.0,62105.0,0.25845575]
[1722697132722,0.51385747,62106.0,62105.0,0.09743875]
[1722697133133,0.51385747,62106.0,62105.0,0.09901314]
[1722697133312,0.51785747,62106.0,62105.0,0.0202612]
[1722697133511,0.52185747,62106.0,62105.0,0.01868681]
[1722697133913,0.52185747,62106.0,62105.0,0.0202612]
[1722697134080,0.52185747,62106.0,62105.0,0.01868681]
[1722697134700,0.388,62106.0,62105.0,0.01868681]
[1722697134904,0.52185603,62106.0,62105.0,0.01868681]
[1722697135104,0.52185603,62106.0,62105.0,0.0202612]
[1722697135973,0.52185603,62106.0,62105.0,0.09901314]
[1722697137296,0.52185603,62106.0,62105.0,0.09743875]
[1722697138212,0.67931527,62106.0,62105.0,0.09743875]
[1722697138428,0.6793158,62106.0,62105.0,0.09743875]
[1722697139214,0.8403308,62106.0,62105.0,0.09743875]
[1722697139707,0.8403308,62106.0,62105.0,0.08875194]
[1722697139937,0.6793158,62106.0,62105.0,0.08875194]
[1722697140385,0.8403308,62106.0,62105.0,0.08875194]
[1722697141019,0.6793158,62106.0,62105.0,0.08875194]
[1722697141361,0.6793158,62106.0,62105.0,0.09567313]
[1722697142581,0.6793158,62106.0,62105.0,0.25669013]
[1722697142776,0.6793158,62106.0,62105.0,0.09567313]
[1722697144374,0.6793158,62106.0,62105.0,0.09655359]
[1722697144375,0.67931508,62106.0,62105.0,0.09655359]
[1722697144641,0.67931508,62106.0,62105.0,0.25669013]
[1722697144791,0.52185584,62106.0,62105.0,0.57872513]
[1722697144994,0.52185584,62106.0,62105.0,0.25669013]
[1722697146030,0.52185584,62106.0,62105.0,0.57872513]
[1722697146642,0.52185584,62106.0,62105.0,0.25669013]
[1722697148419,0.52185584,62106.0,62105.0,0.57872513]
[1722697150455,0.52185584,62106.0,62105.0,0.90076013]
[1722697151514,0.52185584,62106.0,62105.0,1.38899513]
[1722697152297,0.52183223,62106.0,62105.0,1.38899513]
[1722697152498,0.51783223,62106.0,62105.0,1.39891858]
[1722697152726,0.51383223,62106.0,62105.0,1.39891858]
[1722697152931,0.51483223,62106.0,62105.0,1.40891858]
[1722697153154,0.51583223,62106.0,62105.0,1.41891858]
[1722697153332,0.51383223,62106.0,62105.0,1.39891858]
[1722697153687,0.51583223,62106.0,62105.0,1.41991858]
[1722697153909,0.382,62106.0,62105.0,1.40991858]
[1722697154230,0.382,62106.0,62105.0,1.73295358]
[1722697154472,0.382,62106.0,62105.0,1.74295358]
[1722697154643,0.382,62106.0,62105.0,1.41891858]
[1722697155049,0.382,62106.0,62105.0,1.42091858]
[1722697155746,0.381,62106.0,62105.0,1.41091858]
[1722697155918,0.382,62106.0,62105.0,1.42091858]
[1722697156117,0.383,62106.0,62105.0,1.43091858]
[1722697156338,0.381,62106.0,62105.0,1.41091858]
[1722697156822,0.38183,62106.0,62105.0,1.40891858]
[1722697157057,0.38183,62106.0,62105.0,0.17304464]
[1722697157227,1.10043424,62106.0,62105.0,0.02692119]
[1722697157425,0.61738924,62106.0,62105.0,0.02692119]
[1722697157566,0.81782999,62106.0,62105.0,0.03]
[1722697158620,0.68398924,62106.0,62105.0,0.0299028]
[1722697158817,0.68298924,62106.0,62105.0,0.0199028]
[1722697158991,0.68198924,62106.0,62105.0,0.0099028]
[1722697159197,0.53828924,62106.0,62105.0,0.0179028]
[1722697159553,0.38083,62106.0,62105.0,0.02447002]
[1722697159744,0.84300424,62106.0,62105.0,0.01647002]
[1722697159945,1.16503424,62106.0,62105.0,0.01647002]
[1722697160159,1.62092554,62106.0,62105.0,0.0099028]
[1722697160326,1.48706424,62106.0,62105.0,0.0099028]
[1722697160691,1.51006424,62106.0,62105.0,0.0099028]
[1722697161299,1.84474007,62106.0,62105.0,0.0099028]
[1722697162139,1.51006424,62106.0,62105.0,0.0099028]
[1722697162340,1.70742184,62106.0,62105.0,0.0119028]
[1722697162678,1.85873622,62106.0,62105.0,0.0119028]
[1722697163498,1.71442253,62106.0,62105.0,0.0119028]
[1722697163946,2.18077455,62106.0,62105.0,0.0119028]
[1722697164351,2.13645474,62106.0,62105.0,0.0119028]
[1722697164757,2.28077811,62106.0,62105.0,0.0119028]
[1722697165271,2.12945522,62106.0,62105.0,0.0109028]
[1722697165516,2.14345522,62106.0,62105.0,0.0109028]
[1722697165719,2.07387174,62106.0,62105.0,0.0109028]
[1722697165922,2.26424065,62106.0,62105.0,0.0109028]
[1722697166131,2.08087174,62106.0,62105.0,0.0099028]
[1722697166338,2.07997102,62106.0,62105.0,0.0099028]
[1722697166785,2.09397102,62106.0,62105.0,0.0099028]
[1722697166936,2.07997102,62106.0,62105.0,0.0099028]
[1722697167156,2.09397102,62106.0,62105.0,0.0099028]
[1722697168371,2.07997102,62106.0,62105.0,0.0099028]
[1722697168791,2.1504632,62106.0,62105.0,0.0099028]
[1722697168991,2.1364632,62106.0,62105.0,0.0099028]
[1722697169205,2.06597102,62106.0,62105.0,0.0099028]
[1722697169392,2.07997682,62106.0,62105.0,0.0099028]
[1722697169775,2.09397682,62106.0,62105.0,0.0099028]
[1722697170174,2.06597682,62106.0,62105.0,0.0099028]
[1722697170377,2.07997682,62106.0,62105.0,0.0099028]
[1722697170998,2.38800682,62106.0,62105.0,0.0099028]
[1722697171357,2.44450495,62106.0,62105.0,0.0099028]
[1722697171563,2.60284077,62106.0,62105.0,0.0099028]
[1722697172247,2.45850405,62106.0,62105.0,0.0099028]
[1722697172460,2.47250405,62106.0,62105.0,0.0099028]
[1722697172655,2.09397682,62106.0,62105.0,0.0099028]
[1722697172883,2.08081617,62106.0,62105.0,0.0099028]
[1722697173105,2.21469843,62106.0,62105.0,0.0099028]
[1722697174164,2.0939765,62106.0,62105.0,0.0099028]
[1722697175017,2.09676473,62106.0,62105.0,0.0099028]
[1722697176164,2.19331909,62106.0,62105.0,0.0099028]
[1722697176977,2.09676473,62106.0,62105.0,0.0099028]
[1722697177199,2.19331747,62106.0,62105.0,0.0099028]
[1722697178271,2.86181747,62106.0,62105.0,0.0099028]
[1722697179444,2.07405747,62106.0,62105.0,0.0099028]
[1722697179653,2.04712216,62106.0,62105.0,0.0099028]
[1722697179853,2.04711754,62106.0,62105.0,0.0099028]
[1722697180485,2.36914754,62106.0,62105.0,0.0099028]
[1722697181467,2.29674188,62106.0,62105.0,0.0099028]
[1722697181673,2.2967428,62106.0,62105.0,0.0099028]
[1722697181900,2.3472738,62106.0,62105.0,0.0099028]
[1722697182307,2.3332738,62106.0,62105.0,0.0099028]
[1722697182500,2.3472738,62106.0,62105.0,0.0099028]
[1722697182709,2.3612738,62106.0,62105.0,0.0099028]
[1722697183092,2.3472738,62106.0,62105.0,0.0099028]
[1722697183294,2.22739524,62106.0,62105.0,0.0099028]
[1722697183544,2.6833034,62106.0,62105.0,0.0099028]
[1722697183721,2.8247034,62106.0,62105.0,0.0099028]
[1722697184121,2.94537537,62106.0,62105.0,0.0099028]
[1722697184330,2.88119616,62106.0,62105.0,0.0099028]
[1722697184750,3.00186813,62106.0,62105.0,0.0099028]
[1722697184959,2.8247034,62106.0,62105.0,0.0099028]
[1722697185130,2.92123978,62106.0,62105.0,0.0099028]
[1722697185330,3.02552722,62106.0,62105.0,0.0099028]
[1722697186165,3.05312362,62106.0,62105.0,0.0099028]
[1722697187027,3.05241154,62106.0,62105.0,0.0099028]
[1722697190310,3.05241154,62106.0,62105.0,0.0108158]
[1722697190761,3.67444154,62106.0,62105.0,0.0108158]
[1722697191360,3.73014154,62106.0,62105.0,0.0108158]
[1722697193985,3.72939805,62106.0,62105.0,0.0108158]
[1722697194385,3.73936364,62106.0,62105.0,0.0108158]
[1722697195626,3.37369805,62106.0,62105.0,0.0108158]
[1722697195836,3.05166805,62106.0,62105.0,0.0108158]
[1722697196039,1.76016305,62106.0,62105.0,0.0108158]
[1722697196260,2.0727485,62106.0,62105.0,0.01239019]
[1722697196404,2.06452324,62106.0,62105.0,0.07819019]
[1722697196609,2.06452324,62106.0,62105.0,0.0766158]
[1722697196899,2.12101464,62106.0,62105.0,0.0766158]
[1722697197084,2.76507464,62106.0,62105.0,0.0766158]
[1722697197225,2.46717567,62106.0,62105.0,0.0766158]
[1722697197437,2.46715736,62106.0,62105.0,0.0766158]
[1722697197642,2.49015736,62106.0,62105.0,0.0766158]
[1722697198044,2.41776019,62106.0,62105.0,0.0766158]
[1722697198241,2.49015736,62106.0,62105.0,0.0766158]
[1722697199082,2.65861024,62106.0,62105.0,0.0108158]
[1722697199295,2.41776112,62106.0,62105.0,0.0108158]
[1722697199812,2.4177606,62106.0,62105.0,0.0108158]
[1722697200385,1.6621233,62106.0,62105.0,0.0108158]
[1722697200584,1.5331942,62106.0,62105.0,0.0108158]
[1722697200854,2.38655585,62106.0,62105.0,0.01239019]
[1722697201144,4.25352809,62106.0,62105.0,0.0108158]
[1722697201355,4.71804042,62106.0,62105.0,0.0108158]
[1722697201995,4.59729976,62106.0,62105.0,0.0108158]
[1722697203345,3.12021422,62106.0,62105.0,0.1496158]
[1722697203544,1.52987377,62106.0,62105.0,0.1496158]
[1722697203746,1.50570343,62106.0,62105.0,0.1496158]
[1722697203944,1.59421828,62106.0,62105.0,0.1496158]
[1722697204150,1.64255133,62106.0,62105.0,0.1496158]
[1722697204468,1.59421828,62106.0,62105.0,0.1496158]
[1722697204676,2.31077843,62106.0,62105.0,0.0108158]
[1722697204839,1.49171014,62106.0,62105.0,0.0108158]
[1722697205250,1.65272514,62106.0,62105.0,0.0108158]
[1722697205448,1.90224828,62106.0,62105.0,0.0108158]
[1722697205707,1.88824828,62106.0,62105.0,0.0108158]
[1722697205938,1.91624828,62106.0,62105.0,0.0108158]
[1722697206142,1.91623361,62106.0,62105.0,0.0108158]
[1722697206317,2.33495858,62106.0,62105.0,0.0108158]
[1722697206488,1.59420361,62106.0,62105.0,0.0108158]
[1722697206696,2.01292813,62106.0,62105.0,0.0108158]
[1722697206889,2.01292889,62106.0,62105.0,0.0108158]
[1722697207093,1.69089889,62106.0,62105.0,0.0108158]
[1722697207453,1.59420437,62106.0,62105.0,0.0108158]
[1722697207854,2.01292889,62106.0,62105.0,0.0108158]
[1722697208105,2.33495889,62106.0,62105.0,0.0108158]
[1722697208514,3.78588437,62106.0,62105.0,0.0108158]
[1722697208720,3.92338437,62106.0,62105.0,0.0108158]
[1722697209323,4.04425399,62106.0,62105.0,0.0108158]
[1722697209522,4.30681437,62106.0,62105.0,0.0108158]
[1722697209752,4.36330332,62106.0,62105.0,0.0108158]
[1722697209912,3.98478437,62106.0,62105.0,0.0108158]
[1722697210116,4.04127332,62106.0,62105.0,0.0108158]
[1722697210371,3.98479219,62106.0,62105.0,0.0108158]
[1722697210595,4.04128444,62106.0,62105.0,0.0108158]
[1722697211308,3.98479207,62106.0,62105.0,0.0108158]
[1722697211531,3.92339207,62106.0,62105.0,0.0108158]
[1722697211739,3.11831707,62106.0,62105.0,0.1496158]
[1722697211943,1.97869707,62106.0,62105.0,0.1496158]
[1722697212140,1.50571629,62106.0,62105.0,0.1496158]
[1722697212336,1.43319707,62106.0,62105.0,0.1496158]
[1722697212924,1.36866607,62106.0,62105.0,0.1496158]
[1722697213892,1.04514647,62106.0,62105.0,0.1496158]
[1722697214095,1.03114647,62106.0,62105.0,0.3106328]
[1722697214246,1.03114647,62106.0,62105.0,0.1496158]
[1722697214247,1.02114647,62106.0,62105.0,0.1496158]
[1722697214450,1.02514647,62106.0,62105.0,0.6326678]
[1722697214829,1.02114647,62106.0,62105.0,0.3106328]
[1722697215037,1.02114647,62106.0,62105.0,0.1496158]
[1722697215236,1.02314647,62106.0,62105.0,0.3106328]
[1722697215942,1.01914647,62106.0,62105.0,0.3106328]
[1722697216530,0.86168723,62106.0,62105.0,0.9547028]
[1722697216678,0.86368723,62106.0,62105.0,0.9547028]
[1722697217278,1.40918427,62106.0,62105.0,0.9547028]
[1722697217524,1.40518427,62106.0,62105.0,0.9547028]
[1722697217733,1.27133,62106.0,62105.0,0.9647028]
[1722697217974,0.86267949,62106.0,62105.0,0.97227834]
[1722697218175,0.72883,62106.0,62105.0,0.96227834]
[1722697218317,0.72783,62106.0,62105.0,0.96227834]
[1722697218719,0.72783,62106.0,62105.0,0.96527834]
[1722697219123,0.72583,62106.0,62105.0,0.96527834]
[1722697219319,0.38083,62106.0,62105.0,0.97527834]
[1722697219545,0.38083,62106.0,62105.0,1.29731334]
[1722697220119,0.38083,62106.0,62105.0,0.96527834]
[1722697220348,0.38083,62106.0,62105.0,0.97527834]
[1722697220547,0.38083,62106.0,62105.0,0.96527834]
[1722697221193,0.38083,62106.0,62105.0,0.98527834]
[1722697222375,0.38083,62106.0,62105.0,0.96527834]
[1722697224811,0.38083,62106.0,62105.0,0.16019134]
[1722697225044,0.38083,62106.0,62105.0,0.02139134]
[1722697225045,0.6721377,62106.0,62105.0,0.02139134]
[1722697225212,0.67214107,62106.0,62105.0,0.0138158]
[1722697225412,0.67214107,62106.0,62105.0,0.01987623]
[1722697226906,0.67614107,62106.0,62105.0,0.49992823]
[1722697227116,0.51468183,62106.0,62105.0,0.98386323]
[1722697227322,0.38483,62106.0,62105.0,0.64182823]
[1722697227530,0.38883,62106.0,62105.0,0.31979323]
[1722697227733,0.38483,62106.0,62105.0,0.31979323]
[1722697227942,0.38483,62106.0,62105.0,0.64182823]
[1722697227943,0.38883,62106.0,62105.0,0.64182823]
[1722697228150,0.38483,62106.0,62105.0,0.64182823]
[1722697228563,0.38083,62106.0,62105.0,0.31979323]
[1722697228772,0.38183,62106.0,62105.0,0.31979323]
[1722697228984,0.83415622,62106.0,62105.0,0.01687623]
[1722697229391,0.83415622,62106.0,62105.0,0.0108158]
[1722697229593,0.83416388,62106.0,62105.0,0.0108158]
[1722697229767,0.83416388,62106.0,62105.0,0.01687117]
[1722697229768,1.15619388,62106.0,62105.0,0.01687117]
[1722697229978,0.83416388,62106.0,62105.0,0.0108158]
[1722697230132,0.83316388,62106.0,62105.0,0.0108158]
[1722697230335,0.83316388,62106.0,62105.0,0.01687117]
[1722697230551,0.83416388,62106.0,62105.0,0.01687117]
[1722697230952,0.67314888,62106.0,62105.0,0.0108158]
[1722697231158,0.53828924,62106.0,62105.0,0.0108158]
[1722697231357,0.51469304,62106.0,62105.0,0.1527158]
[1722697231558,0.51569304,62106.0,62105.0,0.3137328]
[1722697231760,0.51569304,62106.0,62105.0,0.15877117]
[1722697232122,0.51469304,62106.0,62105.0,0.64182317]
[1722697232365,0.51469304,62106.0,62105.0,0.65182317]
[1722697232773,0.51469304,62106.0,62105.0,0.64182317]
[1722697233617,0.52769304,62106.0,62105.0,0.64182317]
[1722697234026,0.52169304,62106.0,62105.0,0.64182317]
[1722697234218,0.51469304,62106.0,62105.0,0.64182317]
[1722697234422,0.51469304,62106.0,62105.0,0.64282317]
[1722697234749,0.38083,62106.0,62105.0,0.64282317]
[1722697234941,0.51468209,62106.0,62105.0,0.65282317]
[1722697235142,0.51468209,62106.0,62105.0,0.64282317]
[1722697235528,0.51468209,62106.0,62105.0,0.65282317]
[1722697235725,0.51468209,62106.0,62105.0,0.97485817]
[1722697235883,0.51468209,62106.0,62105.0,0.96485817]
[1722697236931,0.51468209,62106.0,62105.0,0.97485817]
[1722697237633,0.38083,62106.0,62105.0,0.96485817]
[1722697237841,0.38083,62106.0,62105.0,0.97485817]
[1722697238215,0.38083,62106.0,62105.0,0.97385817]
[1722697238441,0.38083,62106.0,62105.0,0.96385817]
[1722697238662,0.38583,62106.0,62105.0,0.97385817]
[1722697238860,0.38583,62106.0,62105.0,1.30589317]
[1722697239061,0.38083,62106.0,62105.0,1.30589317]
[1722697239399,0.38083,62106.0,62105.0,1.30789317]
[1722697239601,0.38083,62106.0,62105.0,1.31989317]
[1722697239809,0.38083,62106.0,62105.0,1.64192817]
[1722697240555,0.38483,62106.0,62105.0,1.64192817]
[1722697240757,0.38083,62106.0,62105.0,1.64192817]
[1722697241641,0.38083,62106.0,62105.0,1.63992817]
[1722697241953,0.38183,62106.0,62105.0,1.63992817]
[1722697242355,0.38183,62106.0,62105.0,1.64392817]
[1722697244213,0.38183,62106.0,62105.0,1.64192817]
[1722697244559,0.38183,62106.0,62105.0,0.64582317]
[1722697244767,0.38183,62106.0,62105.0,0.50392317]
[1722697245523,0.38183,62106.0,62105.0,0.49992317]
[1722697245867,0.38783,62106.0,62105.0,0.50092317]
[1722697246291,0.52167779,62106.0,62105.0,0.50092317]
[1722697246493,0.38783,62106.0,62105.0,0.50092317]
[1722697246876,0.38683,62106.0,62105.0,0.50092317]
[1722697247077,0.52067833,62106.0,62105.0,0.50092317]
[1722697247308,0.51967833,62106.0,62105.0,0.49992317]
[1722697247517,0.51567833,62106.0,62105.0,0.49992317]
[1722697247957,0.51567773,62106.0,62105.0,0.49992317]
[1722697248187,0.51467773,62106.0,62105.0,0.49992317]
[1722697248426,0.38083,62106.0,62105.0,0.49992317]
[1722697248653,0.39183,62106.0,62105.0,0.50092317]
[1722697248884,0.38683,62106.0,62105.0,0.50092317]
[1722697249112,0.38083,62106.0,62105.0,0.98845817]
[1722697250266,0.38083,62106.0,62105.0,0.96845817]
[1722697250506,0.38083,62106.0,62105.0,0.98845817]
[1722697250507,0.38183,62106.0,62105.0,0.98845817]
[1722697250963,0.38383,62106.0,62105.0,0.98845817]
[1722697251196,0.38083,62106.0,62105.0,0.97145817]
[1722697251395,0.38083,62106.0,62105.0,0.97245817]
[1722697251665,0.38083,62106.0,62105.0,1.31649317]
[1722697251872,0.38083,62106.0,62105.0,1.31249317]
[1722697252314,0.38183,62106.0,62105.0,1.46669317]
[1722697253754,0.38183,62106.0,62105.0,1.46469317]
[1722697254188,0.38183,62106.0,62105.0,1.46669317]
[1722697254364,0.38183,62106.0,62105.0,1.46469317]
[1722697255313,0.38183,62106.0,62105.0,1.30549317]
[1722697255460,0.38183,62106.0,62105.0,1.29549317]
[1722697255661,0.38183,62106.0,62105.0,1.31549317]
[1722697255873,0.38183,62106.0,62105.0,1.29549317]
[1722697256092,0.38183,62106.0,62105.0,1.31549317]
[1722697257408,0.38183,62106.0,62105.0,1.29549317]
[1722697257971,0.38183,62106.0,62105.0,1.31549317]
[1722697259421,0.38183,62106.0,62105.0,1.29549317]
[1722697260405,0.38183,62106.0,62105.0,0.50492317]
[1722697260604,0.38183,62106.0,62105.0,0.02187117]
[1722697260812,0.38183,62106.0,62105.0,0.50492317]
[1722697261014,0.38183,62106.0,62105.0,0.02187117]
[1722697261188,0.38183,62106.0,62105.0,0.50492317]
[1722697261425,0.38083,62106.0,62105.0,0.49992317]
[1722697261826,0.39383,62106.0,62105.0,0.50092317]
[1722697262212,0.52767721,62106.0,62105.0,0.50092317]
[1722697262415,0.52067721,62106.0,62105.0,0.49992317]
[1722697262615,0.52767721,62106.0,62105.0,0.50092317]
[1722697262886,0.52767721,62106.0,62105.0,0.82295817]
[1722697263087,0.39383,62106.0,62105.0,0.82295817]
[1722697263284,0.52767692,62106.0,62105.0,0.82295817]
[1722697264105,0.38783,62106.0,62105.0,0.82295817]
[1722697264345,0.52167672,62106.0,62105.0,0.90495817]
[1722697264466,0.38783,62106.0,62105.0,1.28939317]
[1722697264680,0.38783,62106.0,62105.0,0.82195817]
[1722697264681,0.38083,62106.0,62105.0,0.82195817]
[1722697264899,0.38183,62106.0,62105.0,0.82195817]
[1722697265494,0.38083,62106.0,62105.0,0.82195817]
[1722697265942,0.38083,62106.0,62105.0,0.82395817]
[1722697266373,0.38083,62106.0,62105.0,0.82195817]
[1722697266583,0.38083,62106.0,62105.0,0.82295817]
[1722697268377,0.38083,62106.0,62105.0,0.82495817]
[1722697268917,0.38083,62106.0,62105.0,0.82295817]
[1722697269146,0.38083,62106.0,62105.0,0.82495817]
[1722697272434,0.38083,62106.0,62105.0,0.18088817]
[1722697272660,0.5146749,62106.0,62105.0,0.18088817]
[1722697273063,0.5146749,62106.0,62105.0,0.50292317]
[1722697273452,0.5146749,62106.0,62105.0,0.50092317]
[1722697273974,0.5146749,62106.0,62105.0,0.49992317]
[1722697274200,0.5176749,62106.0,62105.0,0.49992317]
[1722697274607,0.5146749,62106.0,62105.0,0.49992317]
[1722697274832,0.5146749,62106.0,62105.0,0.01687117]
[1722697275059,0.5176749,62106.0,62105.0,0.0108158]
[1722697275604,0.51468155,62106.0,62105.0,0.0172143]
[1722697275804,0.51568155,62106.0,62105.0,0.0172143]
[1722697276402,0.51468155,62106.0,62105.0,0.0172143]
[1722697276608,0.52068155,62106.0,62105.0,0.0172143]
[1722697276984,0.51768155,62106.0,62105.0,0.0172143]
[1722697277187,0.52068155,62106.0,62105.0,0.0172143]
[1722697277636,0.51768155,62106.0,62105.0,0.0172143]
[1722697277837,0.51768271,62106.0,62105.0,0.0172143]
[1722697278046,0.51668271,62106.0,62105.0,0.0172143]
[1722697278422,0.51868271,62106.0,62105.0,0.0172143]
[1722697279200,0.38483,62106.0,62105.0,0.0172143]
[1722697279524,0.51868598,62106.0,62105.0,0.0172143]
[1722697281081,1.48122022,62106.0,62105.0,0.0172143]
[1722697281263,1.64812022,62106.0,62105.0,0.0172143]
[1722697281420,2.09094826,62106.0,62105.0,0.0108158]
[1722697281618,2.02666709,62106.0,62105.0,0.0108158]
[1722697281816,2.20651932,62106.0,62105.0,0.0108158]
[1722697282119,2.27099713,62106.0,62105.0,0.0108158]
[1722697282699,3.06769214,62106.0,62105.0,0.0108158]
[1722697282898,3.53219214,62106.0,62105.0,0.0108158]
[1722697283343,3.53219214,62106.0,62105.0,0.000913]
[1722697283538,3.99022214,62106.0,62105.0,0.000913]
[1722697283954,3.98822214,62106.0,62105.0,0.000913]
[1722697284147,1.849364,62096.0,62095.0,0.0099028]
[1722697284386,6.4404677,62096.0,62095.0,0.0099028]
[1722697284585,6.4700853,62096.0,62095.0,0.0099028]
[1722697284918,6.47287412,62096.0,62095.0,0.0099028]
[1722697285152,5.74093534,62096.0,62095.0,0.0099028]
[1722697285370,6.12575908,62096.0,62095.0,0.0099028]
[1722697285579,6.13675908,62096.0,62095.0,0.0099028]
[1722697286196,6.13679144,62096.0,62095.0,0.0099028]
[1722697286400,6.12361695,62096.0,62095.0,0.0099028]
[1722697287296,5.80153595,62096.0,62095.0,0.0099028]
[1722697287506,5.72930351,62096.0,62095.0,0.0099028]
[1722697287924,6.05138451,62096.0,62095.0,0.0099028]
[1722697288541,6.37346551,62096.0,62095.0,0.0099028]
[1722697288756,6.42159878,62096.0,62095.0,0.0099028]
[1722697289184,6.42157554,62096.0,62095.0,0.0099028]
[1722697289380,6.01257554,62096.0,62095.0,0.0099028]
[1722697289590,5.83055363,62096.0,62095.0,0.0099028]
[1722697289792,5.96446523,62096.0,62095.0,0.0099028]
[1722697290536,7.18508523,62096.0,62095.0,0.0099028]
[1722697291277,0.322087,62095.0,62093.0,0.0099028]
[1722697291554,0.92021043,62094.0,62093.0,0.0099028]
[1722697291725,1.98739443,62094.0,62093.0,0.0099028]
[1722697291926,2.30948643,62094.0,62093.0,0.0099028]
[1722697292128,2.35759646,62094.0,62093.0,0.0099028]
[1722697292329,2.30948643,62094.0,62093.0,0.0099028]
[1722697293976,2.77398643,62094.0,62093.0,0.0099028]
[1722697294531,2.78298643,62094.0,62093.0,0.0099028]
[1722697295606,2.79198643,62094.0,62093.0,0.0099028]
[1722697296655,2.65807324,62094.0,62093.0,0.0099028]